Workbook

Sheet день1
A1: Прием | B1: № | C1: Наименование блюда | D1: Масса | E1: Энергетичес- | G1: Пищевые | I1: Витамин
A2: пищи | B2: рецептуры | D2: порции, | E2: кая ценность, | F2: Белки, | G2: Жиры, | H2: Углеводы, | I2: С
D3: гр. | E3: (ккал) | F3: гр. | G3: гр. | H3: гр
D4: 1 день
A5: Завтрак | B5: 28 | C5: Суп молочный рисовый | D5: 200.0 | E5: 149.00 | F5: 4.95 | G5: 6.07 | H5: 18.63 | I5: 0.36
B6: 116 | C6: Сыр порциями | D6: 10.3 | E6: 35.00 | F6: 2.68 | G6: 2.73 | I6: 0.16
B7: 115 | C7: Масло сливочное порциями | D7: 5.0 | E7: 35.00 | F7: 0.04 | G7: 3.90 | H7: 0.05 | I7: 0.14
B8: 79 | C8: Какао с молоком | D8: 200.0 | E8: 178.00 | F8: 4.56 | G8: 4.44 | H8: 29.99 | I8: 0.32
B9: 136 | C9: Хлеб пшеничный | D9: 30.0 | E9: 58.80 | F9: 2.55 | G9: 0.48 | H9: 11.10 | I9: 0
B10: 100 | C10: Яблоки свежие | D10: 182.0 | E10: 80.89 | F10: 0.73 | G10: 0.73 | H10: 17.83 | I10: 23.6
C11: Итого за завтрак | E11: =SUM(E5:E10) -> 536.69 | F11: =SUM(F5:F10) -> 15.51 | G11: =SUM(G5:G10) -> 18.35 | H11: =SUM(H5:H10) -> 77.60 | I11: =SUM(I5:I10) -> 24.58
A12: Обед | B12: 4 | C12: Овощи тушеные | D12: 60.0 | E12: 82.00 | F12: 0.99 | G12: 6.05 | H12: 5.79 | I12: 17.23
B13: 22 | C13: Рассольник на м/к бульоне со сметаной | D13: 200.0 | E13: 136.00 | F13: 5.25 | G13: 7.14 | H13: 12.79 | I13: 5.37
B14: 56 | C14: Макаронные изделия отварные | D14: 150.0 | E14: 218.00 | F14: 6.18 | G14: 5.65 | H14: 35.62 | I14: 0.05
B15: 162 | C15: Котлеты рыбные | D15: 80.0 | E15: 118.00 | F15: 10.93 | G15: 5.92 | H15: 5.21 | I15: 0.3
B16: 135 | C16: Хлеб ржаной порциями | D16: 42.0 | E16: 72.90 | F16: 2.77 | G16: 0.50 | H16: 14.42 | I16: 0
B17: 136 | C17: Хлеб пшеничный порциями | D17: 40.0 | E17: 78.70 | F17: 3.40 | G17: 0.64 | H17: 14.80 | I17: 0
B18: 144 | C18: Пряники | D18: 17.5 | E18: 61.30 | F18: 0.84 | G18: 0.49 | H18: 13.60 | I18: 0
B19: 89 | C19: Компот из смеси сухофруктов | D19: 200.0 | E19: 54.00 | H19: 13.62 | I19: 0
C20: Итого за обед | E20: =SUM(E12:E19) -> 820.90 | F20: =SUM(F12:F19) -> 30.36 | G20: =SUM(G12:G19) -> 26.39 | H20: =SUM(H12:H19) -> 115.85 | I20: =SUM(I12:I19) -> 22.95
A21: Полдник | B21: 171, 159 | C21: Оладьи с молоком сгущенным | D21: 120.0 | E21: 306.00 | F21: 7.37 | G21: 12.58 | H21: 40.94 | I21: 0.18
B22: 153 | C22: Сок натуральный | D22: 200.0 | E22: 85.00 | F22: 0.75 | H22: 20.57 | I22: 1.6
C23: Итого за полдник | E23: =E21+E22 -> 391.00 | F23: =F21+F22 -> 8.12 | G23: =G21+G22 -> 12.58 | H23: =H21+H22 -> 61.51 | I23: =I21+I22 -> 1.78
C24: Всего за день | E24: =E11+E20+E23 -> 1748.59 | F24: =F11+F20+F23 -> 53.99 | G24: =G11+G20+G23 -> 57.32 | H24: =H11+H20+H23 -> 254.96 | I24: =I11+I20+I23 -> 49.31

Sheet день2
A1: Прием | B1: № | C1: Наименование блюда | D1: Масса | E1: Энергетичес- | G1: Пищевые | I1: Витамин
A2: пищи | B2: рецептуры | D2: порции, | E2: кая ценность, | F2: Белки, | G2: Жиры, | H2: Углеводы, | I2: С
D3: гр. | E3: (ккал) | F3: гр. | G3: гр. | H3: гр
D4: 2 день
A5: Завтрак | B5: 185 | C5: Суп молочный с овсянными хлопьями | D5: 200.0 | E5: 135.00 | F5: 4.62 | G5: 5.45 | H5: 16.94 | I5: 0.73
B6: 169 | C6: Сосиски отварные | D6: 50.0 | E6: 94.00 | F6: 4.57 | G6: 8.25 | H6: 0.35 | I6: 0.02
B7: 115 | C7: Масло сливочное порциями | D7: 5.0 | E7: 35.00 | F7: 0.04 | G7: 3.90 | H7: 0.05 | I7: 0.14
B8: 205 | C8: Какао с молоком | D8: 200.0 | E8: 178.00 | F8: 4.56 | G8: 4.44 | H8: 29.99 | I8: 0.68
B9: 136 | C9: Хлеб пшеничный | D9: 30.0 | E9: 58.80 | F9: 2.55 | G9: 0.48 | H9: 11.10 | I9: 0
B10: 103 | C10: Апельсины свежие | D10: 160.0 | E10: 60.78 | F10: 1.44 | G10: 0.32 | H10: 12.96 | I10: 96
C11: Итого за завтрак | E11: =SUM(E5:E10) -> 561.58 | F11: =SUM(F5:F10) -> 17.78 | G11: =SUM(G5:G10) -> 22.84 | H11: =SUM(H5:H10) -> 71.39 | I11: =SUM(I5:I10) -> 97.57
A12: Обед | B12: 18 | C12: Салат из свеклы с яблоками | D12: 60.0 | E12: 59.00 | F12: 0.68 | G12: 3.10 | H12: 7.03 | I12: 1.6
B13: 129 | C13: Щи из свежей капусты на м/к бульоне со сметаной | D13: 200.0 | E13: 113.00 | F13: 5.13 | G13: 7.00 | H13: 7.41 | I13: 10.33
B14: 130 | C14: Пюре из гороха | D14: 150.0 | E14: 232.20 | F14: 17.25 | G14: 1.20 | H14: 38.10 | I14: 0.02
B15: 62 | C15: Гуляш из говядины | D15: 80.0 | E15: 188.00 | F15: 13.59 | G15: 13.41 | H15: 3.15 | I15: 1.34
B16: 135 | C16: Хлеб ржаной порциями | D16: 42.0 | E16: 72.90 | F16: 2.77 | G16: 0.50 | H16: 14.42 | I16: 0
B17: 136 | C17: Хлеб пшеничный порциями | D17: 40.0 | E17: 78.70 | F17: 3.40 | G17: 0.64 | H17: 14.80 | I17: 0
B18: 143 | C18: Печенье | D18: 17.5 | E18: 76.30 | F18: 1.32 | G18: 2.07 | H18: 13.02 | I18: 0
B19: 96 | C19: Компот из яблок свежих | D19: 200.0 | E19: 61.00 | F19: 0.16 | H19: 14.99 | I19: 3.6
C20: Итого за обед | E20: =SUM(E12:E19) -> 881.10 | F20: =SUM(F12:F19) -> 44.30 | G20: =SUM(G12:G19) -> 27.92 | H20: =SUM(H12:H19) -> 112.92 | I20: =SUM(I12:I19) -> 16.89
A21: Полдник | B21: 105 | C21: Булочка домашняя | D21: 60.0 | E21: 236.00 | F21: 4.57 | G21: 7.64 | H21: 37.30 | I21: 0
B22: 153 | C22: Сок натуральный | D22: 200.0 | E22: 85.00 | F22: 0.75 | H22: 20.57 | I22: 1.6
C23: Итого за полдник | E23: =SUM(E21:E22) -> 321.00 | F23: =SUM(F21:F22) -> 5.32 | G23: =SUM(G21:G22) -> 7.64 | H23: =SUM(H21:H22) -> 57.87 | I23: =SUM(I21:I22) -> 1.60
C24: Всего за день | E24: =E11+E20+E23 -> 1763.68 | F24: =F11+F20+F23 -> 67.40 | G24: =G11+G20+G23 -> 58.40 | H24: =H11+H20+H23 -> 242.18 | I24: =I11+I20+I23 -> 116.06

Sheet день3
A1: Прием | B1: № | C1: Наименование блюда | D1: Масса | E1: Энергетичес- | G1: Пищевые | I1: Витамин
A2: пищи | B2: рецептуры | D2: порции, | E2: кая ценность, | F2: Белки, | G2: Жиры, | H2: Углеводы, | I2: С
D3: гр. | E3: (ккал) | F3: гр. | G3: гр. | H3: гр
D4: 3 день
A5: Завтрак | B5: 132 | C5: Омлет | D5: 115 | E5: 179.00 | F5: 9.67 | G5: 14.48 | H5: 2.44 | I5: 0.24
B6: 116 | C6: Сыр порциями | D6: 14.0 | E6: 47.60 | F6: 3.64 | G6: 3.71 | I6: 0.22
B7: 115 | C7: Масло сливочное порциями | D7: 5.0 | E7: 35.00 | F7: 0.04 | G7: 3.90 | H7: 0.05 | I7: 0.14
B8: 205 | C8: Какао с молоком | D8: 200.0 | E8: 178.00 | F8: 4.56 | G8: 4.44 | H8: 29.99 | I8: 0.68
B9: 136 | C9: Хлеб пшеничный | D9: 30.0 | E9: 58.80 | F9: 2.55 | G9: 0.48 | H9: 11.10 | I9: 0
B10: 101 | C10: Груши свежие | D10: 156.0 | E10: 80.80 | F10: 0.73 | G10: 0.73 | H10: 17.83 | I10: 9.1
C11: Итого за завтрак | E11: =SUM(E5:E10) -> 579.20 | F11: =SUM(F5:F10) -> 21.19 | G11: =SUM(G5:G10) -> 27.74 | H11: =SUM(H5:H10) -> 61.41 | I11: =SUM(I5:I10) -> 10.38
A12: Обед | B12: 9 | C12: Салат картофельный с огурцами солеными | D12: 60.0 | E12: 77.00 | F12: 0.54 | G12: 6.10 | H12: 4.94 | I12: 10.24
B13: 21 | C13: Борщ на м/к бульоне со сметаной | D13: 200.0 | E13: 116.00 | F13: 5.23 | G13: 6.72 | H13: 8.63 | I13: 5.77
B14: 59 | C14: Картофельное пюре | D14: 150.0 | E14: 145.00 | F14: 3.01 | G14: 5.33 | H14: 21.20 | I14: 6.41
B15: 151 | C15: Рыба, припущенная в молоке | D15: 110.0 | E15: 150.00 | F15: 16.01 | G15: 8.10 | H15: 3.30 | I15: 1.45
B16: 135 | C16: Хлеб ржаной порциями | D16: 42.0 | E16: 72.90 | F16: 2.77 | G16: 0.50 | H16: 14.42 | I16: 0
B17: 136 | C17: Хлеб пшеничный порциями | D17: 40.0 | E17: 78.70 | F17: 3.40 | G17: 0.64 | H17: 14.80 | I17: 0
B18: 145 | C18: Вафли | D18: 17.5 | E18: 61.30 | F18: 0.56 | G18: 0.49 | H18: 14.02 | I18: 0
B19: 87 | C19: Кисель | D19: 200.0 | E19: 36.00 | H19: 9.08 | I19: 0
C20: Итого за обед | E20: =SUM(E12:E19) -> 736.90 | F20: =SUM(F12:F19) -> 31.52 | G20: =SUM(G12:G19) -> 27.88 | H20: =SUM(H12:H19) -> 90.39 | I20: =SUM(I12:I19) -> 23.87
A21: Полдник | B21: 45, 159 | C21: Сырники из творога запеченные с молоком сгущенным | D21: 100,0 / 20,0 | E21: 181.00 | F21: 14.46 | G21: 3.74 | H21: 22.49 | I21: 0.29
B22: 153 | C22: Сок натуральный | D22: 200.0 | E22: 85.00 | F22: 0.75 | H22: 20.57 | I22: 1.6
C23: Итого за полдник | E23: =SUM(E21:E22) -> 266.00 | F23: =SUM(F21:F22) -> 15.21 | G23: =SUM(G21:G22) -> 3.74 | H23: =SUM(H21:H22) -> 43.06 | I23: =SUM(I21:I22) -> 1.89
C24: Всего за день | E24: =E11+E20+E23 -> 1582.10 | F24: =F11+F20+F23 -> 67.92 | G24: =G11+G20+G23 -> 59.36 | H24: =H11+H20+H23 -> 194.86 | I24: =I11+I20+I23 -> 36.14

Sheet день4
A1: Прием | B1: № | C1: Наименование блюда | D1: Масса | E1: Энергетичес- | G1: Пищевые | I1: Витамин
A2: пищи | B2: рецептуры | D2: порции, | E2: кая ценность, | F2: Белки, | G2: Жиры, | H2: Углеводы, | I2: С
D3: гр. | E3: (ккал) | F3: гр. | G3: гр. | H3: гр
D4: 4 день
A5: Завтрак | B5: 139 | C5: Суп молочный с пшенной крупой | D5: 200.0 | E5: 135.00 | F5: 4.62 | G5: 5.45 | H5: 16.94 | I5: 0.73
B6: 116 | C6: Сыр порциями | D6: 14.0 | E6: 47.60 | F6: 3.64 | G6: 3.71 | I6: 0.22
B7: 115 | C7: Масло сливочное порциями | D7: 5.0 | E7: 35.00 | F7: 0.04 | G7: 3.90 | H7: 0.05 | I7: 0.14
B8: 205 | C8: Какао с молоком | D8: 200.0 | E8: 178.00 | F8: 4.56 | G8: 4.44 | H8: 29.99 | I8: 0.68
B9: 136 | C9: Хлеб пшеничный | D9: 30.0 | E9: 58.80 | F9: 2.55 | G9: 0.48 | H9: 11.10 | I9: 0
B10: 102 | C10: Бананы свежие | D10: 137.0 | E10: 61.00 | F10: 0.55 | G10: 0.55 | H10: 13.43 | I10: 13.7
C11: Итого за завтрак | E11: =SUM(E5:E10) -> 515.40 | F11: =SUM(F5:F10) -> 15.96 | G11: =SUM(G5:G10) -> 18.53 | H11: =SUM(H5:H10) -> 71.51 | I11: =SUM(I5:I10) -> 15.47
A12: Обед | B12: 1 | C12: Салат "Степной" | D12: 60.0 | E12: 76.00 | F12: 0.75 | G12: 6.08 | H12: 4.51 | I12: 1.41
B13: 51 | C13: Суп на м/к бульоне с крупой перловой | D13: 200.0 | E13: 127.00 | F13: 4.88 | G13: 7.81 | H13: 9.23 | I13: 2.09
B14: 58 | C14: Капуста тушенная | D14: 150.0 | E14: 127.00 | F14: 3.69 | G14: 4.27 | H14: 18.36 | I14: 71.32
B15: 134 | C15: Куры отварные | D15: 80.0 | E15: 235.00 | F15: 13.58 | G15: 17.65 | H15: 5.54 | I15: 0.8
B16: 96 | C16: Компот из яблок свежих | D16: 200.0 | E16: 71.00 | F16: 0.15 | G16: 0.14 | H16: 17.19 | I16: 3.6
B17: 135 | C17: Хлеб ржаной порциями | D17: 42.0 | E17: 72.90 | F17: 2.77 | G17: 0.50 | H17: 14.42 | I17: 0
B18: 136 | C18: Хлеб пшеничный порциями | D18: 40.0 | E18: 78.70 | F18: 3.40 | G18: 0.64 | H18: 14.80 | I18: 0
B19: 144 | C19: Пряники | D19: 17.5 | E19: 61.30 | F19: 0.84 | G19: 0.49 | H19: 13.60 | I19: 0
C20: Итого за обед | E20: =SUM(E12:E19) -> 848.90 | F20: =SUM(F12:F19) -> 30.06 | G20: =SUM(G12:G19) -> 37.58 | H20: =SUM(H12:H19) -> 97.65 | I20: =SUM(I12:I19) -> 79.22
A21: Полдник | B21: 172, 157 | C21: Оладьи с повидлом | D21: 120.0 | E21: 306.00 | F21: 7.37 | G21: 12.58 | H21: 40.94 | I21: 0.18
B22: 204 | C22: Чай с сахаром | D22: 200.0 | E22: 41.00 | H22: 10.26 | I22: 0
C23: Итого за полдник | E23: =SUM(E21:E22) -> 347.00 | F23: =SUM(F21:F22) -> 7.37 | G23: =SUM(G21:G22) -> 12.58 | H23: =SUM(H21:H22) -> 51.20 | I23: =SUM(I21:I22) -> 0.18
C24: Всего за день | E24: =E11+E20+E23 -> 1711.30 | F24: =F11+F20+F23 -> 53.39 | G24: =G11+G20+G23 -> 68.69 | H24: =H11+H20+H23 -> 220.36 | I24: =I11+I20+I23 -> 94.87

Sheet день5
A1: Прием | B1: № | C1: Наименование блюда | D1: Масса | E1: Энергетичес- | G1: Пищевые | I1: Витамин
A2: пищи | B2: рецептуры | D2: порции, | E2: кая ценность, | F2: Белки, | G2: Жиры, | H2: Углеводы, | I2: С
D3: гр. | E3: (ккал) | F3: гр. | G3: гр. | H3: гр
D4: 5 день
A5: Завтрак | B5: 160, 159 | C5: Творожная запеканка с молоком сгущенным | D5: 170.0 | E5: 250.00 | F5: 18.40 | G5: 12.14 | H5: 16.89 | I5: 0.35
B6: 116 | C6: Сыр порциями | D6: 7.0 | E6: 23.80 | F6: 1.82 | G6: 1.86 | I6: 0.11
B7: 169 | C7: Сосиски отварные | D7: 50.0 | E7: 94.00 | F7: 4.57 | G7: 8.25 | H7: 0.35 | I7: 0.02
B8: 205 | C8: Какао с молоком | D8: 200.0 | E8: 178.00 | F8: 4.56 | G8: 4.44 | H8: 29.99 | I8: 0.68
B9: 136 | C9: Хлеб пшеничный | D9: 30.0 | E9: 58.80 | F9: 2.55 | G9: 0.48 | H9: 11.10 | I9: 0
B10: 100 | C10: Яблоки свежие | D10: 182.0 | E10: 80.90 | F10: 0.73 | G10: 0.73 | H10: 17.83 | I10: 23.7
C11: Итого за завтрак | E11: =SUM(E5:E10) -> 685.50 | F11: =SUM(F5:F10) -> 32.63 | G11: =SUM(G5:G10) -> 27.90 | H11: =SUM(H5:H10) -> 76.16 | I11: =SUM(I5:I10) -> 24.86
A12: Обед | B12: 19 | C12: Салат картофельный с зеленым горошком | D12: 60.0 | E12: 94.00 | F12: 1.84 | G12: 6.83 | H12: 6.27 | I12: 6.72
B13: 23 | C13: Суп на м/к бульоне с бобовыми | D13: 200.0 | E13: 145.00 | F13: 7.91 | G13: 6.27 | H13: 14.24 | I13: 3.68
B14: 56 | C14: Макаронные изделия отварные | D14: 150.0 | E14: 218.00 | F14: 6.18 | G14: 5.65 | H14: 35.62 | I14: 0.05
B15: 162 | C15: Котлеты рыбные | D15: 80.0 | E15: 118.00 | F15: 10.93 | G15: 5.92 | H15: 5.21 | I15: 0.3
B16: 135 | C16: Хлеб ржаной порциями | D16: 42.0 | E16: 72.90 | F16: 2.77 | G16: 0.50 | H16: 14.42 | I16: 0
B17: 136 | C17: Хлеб пшеничный порциями | D17: 40.0 | E17: 78.70 | F17: 3.40 | G17: 0.64 | H17: 14.80 | I17: 0
B18: 143 | C18: Печенье | D18: 17.5 | E18: 76.30 | F18: 1.32 | G18: 2.07 | H18: 13.02 | I18: 0
B19: 88 | C19: Компот из апельсинов и яблок свежих | D19: 200.0 | E19: 99.00 | F19: 0.45 | G19: 0.18 | H19: 23.79 | I19: 29.4
C20: Итого за обед | E20: =SUM(E12:E19) -> 901.90 | F20: =SUM(F12:F19) -> 34.80 | G20: =SUM(G12:G19) -> 28.06 | H20: =SUM(H12:H19) -> 127.37 | I20: =SUM(I12:I19) -> 40.15
A21: Полдник | B21: 109 | C21: Слойка | D21: 60.0 | E21: 215.00 | F21: 4.65 | G21: 5.26 | H21: 37.23 | I21: 0.08
B22: 153 | C22: Сок натуральный | D22: 200.0 | E22: 85.00 | F22: 0.75 | H22: 20.57 | I22: 1.6
C23: Итого за полдник | E23: =SUM(E21:E22) -> 300.00 | F23: =SUM(F21:F22) -> 5.40 | G23: =SUM(G21:G22) -> 5.26 | H23: =SUM(H21:H22) -> 57.80 | I23: =SUM(I21:I22) -> 1.68
C24: Всего за день | E24: =E11+E20+E23 -> 1887.40 | F24: =F11+F20+F23 -> 72.83 | G24: =G11+G20+G23 -> 61.22 | H24: =H11+H20+H23 -> 261.33 | I24: =I11+I20+I23 -> 66.69

Sheet день6
A1: Прием | B1: № | C1: Наименование блюда | D1: Масса | E1: Энергетичес- | G1: Пищевые | I1: Витамин
A2: пищи | B2: рецептуры | D2: порции, | E2: кая ценность, | F2: Белки, | G2: Жиры, | H2: Углеводы, | I2: С
D3: гр. | E3: (ккал) | F3: гр. | G3: гр. | H3: гр
D4: 6 день
A5: Завтрак | B5: 186 | C5: Суп молочный с пшеничнрй крупой | D5: 200.0 | E5: 135.00 | F5: 4.62 | G5: 5.45 | H5: 16.94 | I5: 0.73
B6: 39 | C6: Яйцо отварное | D6: 40.0 | E6: 57.00 | F6: 4.78 | G6: 4.05 | H6: 0.25 | I6: 0
B7: 115 | C7: Масло сливочное порциями | D7: 5.0 | E7: 35.00 | F7: 0.04 | G7: 3.90 | H7: 0.05 | I7: 0.14
B8: 205 | C8: Какао с молоком | D8: 200.0 | E8: 178.00 | F8: 4.56 | G8: 4.44 | H8: 29.99 | I8: 0.68
B9: 136 | C9: Хлеб пшеничный | D9: 30.0 | E9: 58.80 | F9: 2.55 | G9: 0.48 | H9: 11.10 | I9: 0
B10: 101 | C10: Груши свежие | D10: 182.0 | E10: 80.89 | F10: 0.73 | G10: 0.73 | H10: 17.83 | I10: 23.6
C11: Итого за завтрак | E11: =SUM(E5:E10) -> 544.69 | F11: =SUM(F5:F10) -> 17.28 | G11: 27.09 | H11: =SUM(H5:H10) -> 76.16 | I11: =SUM(I5:I10) -> 25.15
A12: Обед | B12: 208 | C12: Салат из свеклы с яблоками | D12: 100.0 | E12: 174.00 | F12: 5.12 | G12: 12.30 | H12: 10.68 | I12: 12.5
B13: 173 | C13: Суп на м/к бульене с крупой рис | D13: 300.0 | E13: 190.00 | F13: 7.31 | G13: 11.70 | H13: 13.84 | I13: 3.14
B14: 202 | C14: Запеканка капустная | D14: 205.0 | E14: 274.00 | F14: 7.99 | G14: 15.33 | H14: 25.95 | I14: 37.45
B15: 203 | C15: куры в соусе с томатом | D15: 120.0 | E15: 180.00 | F15: 32.36 | G15: 36.88 | H15: 4.70 | I15: 1.43
B16: 87 | C16: Кисель | D16: 200.0 | E16: 36.00 | H16: 9.08 | I16: 0
B17: 136 | C17: Хлеб пшеничный порциями | D17: 40.0 | E17: 78.70 | F17: 3.40 | G17: 0.64 | H17: 14.80 | I17: 0
B18: 136 | C18: Хлеб ржаной порциями | D18: 42.0 | E18: 72.90 | F18: 2.77 | G18: 0.50 | H18: 14.42 | I18: 0
B19: 144 | C19: Пряники | D19: 17.5 | E19: 61.30 | F19: 0.84 | G19: 0.49 | H19: 13.60 | I19: 0
C20: Итого за обед | E20: =SUM(E12:E19) -> 1066.90 | F20: =SUM(F12:F19) -> 59.79 | G20: =SUM(G12:G19) -> 77.84 | H20: =SUM(H12:H19) -> 107.07 | I20: =SUM(I12:I19) -> 54.52
A21: Полдник | B21: 184 | C21: Сдоба | D21: 60.0 | E21: 215.00 | F21: 4.65 | G21: 5.26 | H21: 37.00 | I21: 0.18
B22: 153 | C22: Молоко | D22: 200.0 | E22: 85.00 | F22: 0.75 | H22: 20.57 | I22: 1.6
C23: Итого за полдник | E23: =SUM(E21:E22) -> 300.00 | F23: =SUM(F21:F22) -> 5.40 | G23: =SUM(G21:G22) -> 5.26 | H23: =SUM(H21:H22) -> 57.57 | I23: =SUM(I21:I22) -> 1.78
C24: Всего за день | E24: =E11+E20+E23 -> 1911.59 | F24: =F11+F20+F23 -> 82.47 | G24: =G11+G20+G23 -> 110.19 | H24: =H11+H20+H23 -> 240.80 | I24: =I11+I20+I23 -> 81.45

Sheet день7
A1: Прием | B1: № | C1: Наименование блюда | D1: Масса | E1: Энергетичес- | G1: Пищевые | I1: Витамин
A2: пищи | B2: рецептуры | D2: порции, | E2: кая ценность, | F2: Белки, | G2: Жиры, | H2: Углеводы, | I2: С
D3: гр. | E3: (ккал) | F3: гр. | G3: гр. | H3: гр
D5: 7 день
A6: Завтрак | B6: 32 | C6: Каша манная молочная | D6: 200.0 | E6: 135.00 | F6: 4.62 | G6: 5.45 | H6: 16.94 | I6: 0.73
B7: 116 | C7: Сыр порциями | D7: 40.0 | E7: 57.00 | F7: 4.78 | G7: 4.05 | H7: 0.25 | I7: 0
B8: 115 | C8: Масло сливочное порциями | D8: 5.0 | E8: 35.00 | F8: 0.04 | G8: 3.90 | H8: 0.05 | I8: 0.14
B9: 205 | C9: Какао с молоком | D9: 200.0 | E9: 178.00 | F9: 4.56 | G9: 4.44 | H9: 29.99 | I9: 0.68
B10: 136 | C10: Хлеб пшеничный | D10: 30.0 | E10: 58.80 | F10: 2.55 | G10: 0.48 | H10: 11.10 | I10: 0
B11: 100 | C11: Яблоки свежие | D11: 182.0 | E11: 80.89 | F11: 0.73 | G11: 0.73 | H11: 17.83 | I11: 23.7
C12: Итого за завтрак | E12: =SUM(E6:E11) -> 544.69 | F12: =SUM(F6:F11) -> 17.28 | G12: =SUM(G6:G11) -> 19.05 | H12: =SUM(H6:H11) -> 76.16 | I12: =SUM(I6:I11) -> 25.25
A13: Обед | B13: 19 | C13: Венигрет | D13: 60.0 | E13: 94.00 | F13: 1.84 | G13: 6.83 | H13: 6.27 | I13: 6.72
B14: 129 | C14: Щи из капусты на м/к бульене со сметаной | D14: 200.0 | E14: 136.00 | F14: 5.25 | G14: 7.14 | H14: 12.79 | I14: 5.37
B15: 59 | C15: Картофельное пюре | D15: 150.0 | E15: 127.00 | F15: 3.69 | G15: 4.27 | H15: 18.36 | I15: 71.32
B16: 151 | C16: Рыба припущенная в молоке | D16: 115.0 | E16: 235.00 | F16: 10.42 | G16: 16.25 | H16: 11.82 | I16: 1.21
B17: 135 | C17: Хлеб ржаной порциями | D17: 42.0 | E17: 72.90 | F17: 2.77 | G17: 0.50 | H17: 14.42 | I17: 0
B18: 136 | C18: Хлеб пшеничный порциями | D18: 40.0 | E18: 78.70 | F18: 3.40 | G18: 0.64 | H18: 14.80 | I18: 0
B19: 143 | C19: Печенье | D19: 17.5 | E19: 76.30 | F19: 1.32 | G19: 2.07 | H19: 13.02 | I19: 0
B20: 89 | C20: Компот из смеси сухофруктов | D20: 200.0 | E20: 54.00 | H20: 13.62 | I20: 0
C21: Итого за обед | E21: =SUM(E13:E20) -> 873.90 | F21: =SUM(F13:F20) -> 28.69 | G21: =SUM(G13:G20) -> 37.70 | H21: =SUM(H13:H20) -> 105.10 | I21: =SUM(I13:I20) -> 84.62
A22: Полдник | B22: 105 | C22: Булочка домашняя | D22: 60.0 | E22: 236.00 | F22: 4.57 | G22: 7.64 | H22: 37.30 | I22: 0
B23: 204 | C23: Чай с сахаром | D23: 200.0 | E23: 41.00 | H23: 10.26 | I23: 0
C24: Итого за полдник | E24: =SUM(E22:E23) -> 277.00 | F24: =SUM(F22:F23) -> 4.57 | G24: =SUM(G22:G23) -> 7.64 | H24: =SUM(H22:H23) -> 47.56 | I24: =SUM(I22:I23) -> 0.00
C25: Всего за день | E25: =E12+E21+E24 -> 1695.59 | F25: =F12+F21+F24 -> 50.54 | G25: =G12+G21+G24 -> 64.39 | H25: =H12+H21+H24 -> 228.82 | I25: =I12+I21+I24 -> 109.87

Sheet день8
A1: Прием | B1: № | C1: Наименование блюда | D1: Масса | E1: Энергетичес- | G1: Пищевые | I1: Витамин
A2: пищи | B2: рецептуры | D2: порции, | E2: кая ценность, | F2: Белки, | G2: Жиры, | H2: Углеводы, | I2: С
D3: гр. | E3: (ккал) | F3: гр. | G3: гр. | H3: гр
D4: 8 день
A5: Завтрак | B5: 138 | C5: Суп молочный с крупой гречневой | D5: 200.0 | E5: 135.00 | F5: 4.62 | G5: 5.45 | H5: 16.94 | I5: 0.73
B6: 116 | C6: Сыр порциями | D6: 14.0 | E6: 47.60 | F6: 3.64 | G6: 3.71 | I6: 0.22
B7: 115 | C7: Масло сливочное порциями | D7: 5.0 | E7: 35.00 | F7: 0.04 | G7: 3.90 | H7: 0.05 | I7: 0.14
B8: 205 | C8: Какао с молоком | D8: 200.0 | E8: 178.00 | F8: 4.56 | G8: 4.44 | H8: 29.99 | I8: 0.68
B9: 136 | C9: Хлеб пшеничный | D9: 30.0 | E9: 58.80 | F9: 2.55 | G9: 0.48 | H9: 11.10 | I9: 0
B10: 103 | C10: Апельсины свежие | D10: 182.0 | E10: 69.10 | F10: 1.64 | G10: 0.37 | H10: 14.74 | I10: 109.2
C11: Итого за завтрак | E11: =SUM(E5:E10) -> 523.50 | F11: =SUM(F5:F10) -> 17.05 | G11: =SUM(G5:G10) -> 18.35 | H11: =SUM(H5:H10) -> 72.82 | I11: =SUM(I5:I10) -> 110.97
A12: Обед | B12: 4 | C12: Салат из свеклы с яблоками | D12: 60.0 | E12: 82.00 | F12: 0.99 | G12: 6.05 | H12: 5.79 | I12: 17.23
B13: 26 | C13: Суп картофельный с мясными фрикадельками | D13: 200.0 | E13: 123.00 | F13: 6.66 | G13: 5.63 | H13: 11.39 | I13: 6
B14: 130 | C14: Пюре из гороха | D14: 150.0 | E14: 232.20 | F14: 17.25 | G14: 1.20 | H14: 38.10 | I14: 0.02
B15: 62 | C15: Гуляш из говядины | D15: 80.0 | E15: 188.00 | F15: 13.59 | G15: 13.41 | H15: 3.15 | I15: 1.34
B16: 135 | C16: Хлеб ржаной порциями | D16: 42.0 | E16: 72.90 | F16: 2.77 | G16: 0.50 | H16: 14.42 | I16: 0
B17: 136 | C17: Хлеб пшеничный порциями | D17: 40.0 | E17: 78.70 | F17: 3.40 | G17: 0.64 | H17: 14.80 | I17: 0
B18: 145 | C18: Вафли | D18: 17.5 | E18: 61.30 | F18: 0.56 | G18: 0.49 | H18: 14.02 | I18: 0
B19: 87 | C19: Кисель | D19: 200.0 | E19: 36.00 | H19: 9.08 | I19: 0
C20: Итого за обед | E20: =SUM(E12:E19) -> 874.10 | F20: =SUM(F12:F19) -> 45.22 | G20: =SUM(G12:G19) -> 27.92 | H20: =SUM(H12:H19) -> 110.75 | I20: =SUM(I12:I19) -> 24.59
A21: Полдник | B21: 45, 159 | C21: Сырники из творога запеченные с молоком сгущенным | D21: 100,0 / 20,0 | E21: 181.00 | F21: 14.46 | G21: 3.74 | H21: 22.49 | I21: 0.29
B22: 153 | C22: Сок натуральный | D22: 200.0 | E22: 85.00 | F22: 0.75 | H22: 20.57 | I22: 1.6
C23: Итого за полдник | E23: =SUM(E21:E22) -> 266.00 | F23: =SUM(F21:F22) -> 15.21 | G23: =SUM(G21:G22) -> 3.74 | H23: =SUM(H21:H22) -> 43.06 | I23: =SUM(I21:I22) -> 1.89
C24: Всего за день | E24: =E11+E20+E23 -> 1663.60 | F24: =F11+F20+F23 -> 77.48 | G24: =G11+G20+G23 -> 50.01 | H24: =H11+H20+H23 -> 226.63 | I24: =I11+I20+I23 -> 137.45

Sheet день9
A1: Прием | B1: № | C1: Наименование блюда | D1: Масса | E1: Энергетичес- | G1: Пищевые | I1: Витамин
A2: пищи | B2: рецептуры | D2: порции, | E2: кая ценность, | F2: Белки, | G2: Жиры, | H2: Углеводы, | I2: С
D3: гр. | E3: (ккал) | F3: гр. | G3: гр. | H3: гр
D4: 9 день
A5: Завтрак | B5: 186 | C5: Суп молочный с пшеничной крупой | D5: 200.0 | E5: 135.00 | F5: 4.62 | G5: 5.45 | H5: 16.94 | I5: 0.73
B6: 116 | C6: Масло сливочное порциями | D6: 5.0 | E6: 35.00 | F6: 0.04 | G6: 3.90 | H6: 0.05 | I6: 0.14
B7: 169 | C7: Сосиски отварные | D7: 50.0 | E7: 94.00 | F7: 4.57 | G7: 8.25 | H7: 0.35 | I7: 0.02
B8: 205 | C8: Какао с молоком | D8: 200.0 | E8: 178.00 | F8: 4.56 | G8: 4.44 | H8: 29.99 | I8: 0.68
B9: 136 | C9: Хлеб пшеничный | D9: 30.0 | E9: 58.80 | F9: 2.55 | G9: 0.48 | H9: 11.10 | I9: 0
B10: 101 | C10: Груши свежие | D10: 182.0 | E10: 80.80 | F10: 0.73 | G10: 0.73 | H10: 17.83 | I10: 9.1
C11: Итого за завтрак | E11: =SUM(E5:E10) -> 581.60 | F11: =SUM(F5:F10) -> 17.07 | G11: =SUM(G5:G10) -> 23.25 | H11: =SUM(H5:H10) -> 76.26 | I11: =SUM(I5:I10) -> 10.67
A12: Обед | B12: 1 | C12: Винегрет овощной | D12: 60.0 | E12: 76.00 | F12: 0.75 | G12: 6.08 | H12: 4.51 | I12: 1.41
B13: 24 | C13: Суп на м/к бульоне с клецками | D13: 200.0 | E13: 114.00 | F13: 5.62 | G13: 5.32 | H13: 10.86 | I13: 3.28
B14: 176 | C14: Рагу из овощей | D14: 150.0 | E14: 188.00 | F14: 3.49 | G14: 12.03 | H14: 16.53 | I14: 13.61
B15: 134 | C15: Куры отварные | D15: 80.0 | E15: 235.00 | F15: 13.58 | G15: 17.65 | H15: 5.54 | I15: 0.8
B16: 89 | C16: Компот из смеси сухофруктов | D16: 200.0 | E16: 54.00 | H16: 13.62 | I16: 0
B17: 135 | C17: Хлеб ржаной порциями | D17: 42.0 | E17: 72.90 | F17: 2.77 | G17: 0.50 | H17: 14.42 | I17: 0
B18: 136 | C18: Хлеб пшеничный порциями | D18: 40.0 | E18: 78.70 | F18: 3.40 | G18: 0.64 | H18: 14.80 | I18: 0
B19: 144 | C19: Пряники | D19: 17.5 | E19: 61.30 | F19: 0.84 | G19: 0.49 | H19: 13.60 | I19: 0
C20: Итого за обед | E20: =SUM(E12:E19) -> 879.90 | F20: =SUM(F12:F19) -> 30.45 | G20: =SUM(G12:G19) -> 42.71 | H20: =SUM(H12:H19) -> 93.88 | I20: =SUM(I12:I19) -> 19.1
A21: Полдник | B21: 172, 157 | C21: Оладьи с повидлом | D21: 120.0 | E21: 306.00 | F21: 7.37 | G21: 12.58 | H21: 40.94 | I21: 0.18
B22: 153 | C22: Сок натуральный | D22: 200.0 | E22: 85.00 | F22: 0.75 | H22: 20.57 | I22: 1.6
C23: Итого за полдник | E23: =SUM(E21:E22) -> 391.00 | F23: =SUM(F21:F22) -> 8.12 | G23: =SUM(G21:G22) -> 12.58 | H23: =SUM(H21:H22) -> 61.51 | I23: =SUM(I21:I22) -> 1.78
C24: Всего за день | E24: =E11+E20+E23 -> 1852.50 | F24: =F11+F20+F23 -> 55.64 | G24: =G11+G20+G23 -> 78.54 | H24: =H11+H20+H23 -> 231.65 | I24: =I11+I20+I23 -> 31.55

Sheet день10
A1: Прием | B1: № | C1: Наименование блюда | D1: Масса | E1: Энергетичес- | G1: Пищевые | I1: Витамин
A2: пищи | B2: рецептуры | D2: порции, | E2: кая ценность, | F2: Белки, | G2: Жиры, | H2: Углеводы, | I2: С
D3: гр. | E3: (ккал) | F3: гр. | G3: гр. | H3: гр
D5: 10 день
A6: Завтрак | B6: 160, 159 | C6: Творожная запеканка с молоком сгущенным | D6: 170.0 | E6: 250.00 | F6: 18.40 | G6: 12.14 | H6: 16.89 | I6: 0.35
B7: 116 | C7: Сыр порциями | D7: 7.0 | E7: 23.80 | F7: 1.82 | G7: 1.86 | I7: 0.11
B8: 115 | C8: Масло сливочное порциями | D8: 5.0 | E8: 35.00 | F8: 0.04 | G8: 3.90 | H8: 0.05 | I8: 0.14
B9: 39 | C9: Яйцо отварное | D9: 40.0 | E9: 57.00 | F9: 4.78 | G9: 4.05 | H9: 0.25 | I9: 0
B10: 205 | C10: Какао с молоком | D10: 200.0 | E10: 178.00 | F10: 4.56 | G10: 4.44 | H10: 29.99 | I10: 0.68
B11: 136 | C11: Хлеб пшеничный | D11: 30.0 | E11: 58.80 | F11: 2.55 | G11: 0.48 | H11: 11.10 | I11: 0
B12: 100 | C12: Яблоки свежие | D12: 182.0 | E12: 80.90 | F12: 0.73 | G12: 0.73 | H12: 17.83 | I12: 23.7
C13: Итого за завтрак | E13: =SUM(E6:E12) -> 683.50 | F13: =SUM(F6:F12) -> 32.88 | G13: =SUM(G6:G12) -> 27.60 | H13: =SUM(H6:H12) -> 76.11 | I13: =SUM(I6:I12) -> 24.98
A14: Обед | B14: 15 | C14: Салат из свеклы отварной | D14: 60.0 | E14: 45.00 | F14: 0.86 | G14: 3.05 | H14: 5.70 | I14: 1.42
B15: 191 | C15: Суп на м/к бульоне с вермишелью | D15: 200.0 | E15: 134.00 | F15: 5.97 | G15: 5.46 | H15: 15.20 | I15: 5.28
B16: 63 | C16: Жаркое по домашнему | D16: 200.0 | E16: 320.00 | F16: 20.03 | G16: 18.96 | H16: 17.25 | I16: 21.37
B17: 135 | C17: Хлеб ржаной порциями | D17: 42.0 | E17: 72.90 | F17: 2.77 | G17: 0.50 | H17: 14.42 | I17: 0
B18: 136 | C18: Хлеб пшеничный порциями | D18: 40.0 | E18: 78.70 | F18: 3.40 | G18: 0.64 | H18: 14.80 | I18: 0
B19: 143 | C19: Печенье | D19: 17.5 | E19: 76.30 | F19: 1.32 | G19: 2.07 | H19: 13.02 | I19: 0
B20: 87 | C20: Кисель | D20: 200.0 | E20: 36.00 | H20: 9.08 | I20: 0
C21: Итого за обед | E21: =SUM(E14:E20) -> 762.90 | F21: =SUM(F14:F20) -> 34.35 | G21: =SUM(G14:G20) -> 30.68 | H21: =SUM(H14:H20) -> 89.47 | I21: =SUM(I14:I20) -> 28.07
A22: Полдник | B22: 109 | C22: Слойка | D22: 60.0 | E22: 215.00 | F22: 4.65 | G22: 5.26 | H22: 37.23 | I22: 0.08
B23: 204 | C23: Чай с сахаром | D23: 200.0 | E23: 41.00 | H23: 10.26 | I23: 0
C24: Итого за полдник | E24: =SUM(E22:E23) -> 256.00 | F24: =SUM(F22:F23) -> 4.65 | G24: =SUM(G22:G23) -> 5.26 | H24: =SUM(H22:H23) -> 47.49 | I24: =SUM(I22:I23) -> 0.08
C25: Всего за день | E25: =E13+E21+E24 -> 1702.40 | F25: =F13+F21+F24 -> 71.88 | G25: =G13+G21+G24 -> 63.54 | H25: =H13+H21+H24 -> 213.07 | I25: =I13+I21+I24 -> 53.13
